fUST/lending_fUST_20250627
["ID","MTS","AMOUNT","RATE_DAILY","PERIOD"]
[368041482,1751003449083,-460.0,0.00021369,2]
[368041483,1751003449092,-501.59,0.00021369,2]
[368041484,1751003449102,-4177.53,0.00021369,2]
[368041485,1751003449112,-1823.15,0.00021369,2]
[368041486,1751003449122,-460.0,0.00021369,2]
[368041487,1751003449132,-2208.11,0.00021369,2]
[368041488,1751003449141,-460.0,0.00021369,2]
[368041489,1751003449151,-460.0,0.00021369,2]
[368041490,1751003449160,-460.0,0.00021369,2]
[368041491,1751003449170,-565.24,0.00021369,2]
[368041492,1751003449180,-880.74,0.00021369,2]
[368041493,1751003449189,-611.48,0.00021369,2]
[368041494,1751003449199,-1105.33,0.00021369,2]
[368041495,1751003449208,-1337.72,0.00021369,2]
[368041496,1751003449217,-460.0,0.00021369,2]
[368041497,1751003449227,-460.0,0.00021369,2]
[368041498,1751003449236,-460.0,0.00021369,2]
[368041499,1751003449246,-460.0,0.00021369,2]
[368041500,1751003449255,-884.36,0.00021369,2]
[368041501,1751003449264,-695.37,0.00021369,2]
[368041502,1751003449273,-2061.18,0.00021369,2]
[368041503,1751003449282,-741.29,0.00021369,2]
[368041504,1751003449291,-527.72,0.00021369,2]
[368041505,1751003449301,-2497.03,0.00021369,2]
[368041506,1751003449310,-460.0,0.00021369,2]
[368041507,1751003449319,-5747.25,0.00021369,2]
[368041508,1751003449328,-460.0,0.00021369,2]
[368041509,1751003449337,-460.0,0.00021369,2]
[368041510,1751003449347,-460.0,0.00021369,2]
[368041511,1751003449356,-460.0,0.00021369,2]
[368041512,1751003449365,-460.0,0.00021369,2]
[368041513,1751003449375,-1610.13,0.00021369,2]
[368041514,1751003449385,-853.05,0.00021369,2]
[368041515,1751003449396,-2661.97,0.00021369,2]
[368041516,1751003449405,-2452.25,0.00021369,2]
[368041517,1751003449414,-759.76,0.00021369,2]
[368041518,1751003449424,-731.76,0.00021369,2]
[368041519,1751003449433,-460.0,0.00021369,2]
[368041520,1751003449443,-267.5,0.00021369,2]
[368041521,1751003449453,-989.19,0.00021369,2]
[368041522,1751003449462,-460.0,0.00021369,2]
[368041523,1751003449473,-2131.7,0.00021369,2]
[368041524,1751003449482,-754.27,0.00021369,2]
[368041525,1751003449492,-1612.45,0.00021369,2]
[368041526,1751003449501,-593.45,0.00021369,2]
[368041527,1751003449510,-2403.88,0.00021369,2]
[368041528,1751003449519,-460.0,0.00021369,2]
[368041529,1751003449529,-1594.99,0.00021369,2]
[368041530,1751003449539,-811.41,0.00021369,2]
[368041531,1751003449548,-1146.9,0.00021369,2]
[368041532,1751003449559,-1579.94,0.00021369,2]
[368041533,1751003449568,-460.0,0.00021369,2]
[368041534,1751003449577,-166.08289693,0.00021397,2]
[368041535,1751003449589,-151.0,0.000214,3]
[368041536,1751003449599,-215.0738,0.00021407,2]
[368041537,1751003449608,-1280.16948974,0.00021409,2]
[368041538,1751003449617,-7572.61937416,0.00021417,5]
[368041539,1751003449626,-966.0,0.00021547,2]
[368041540,1751003449635,-654.0,0.00021547,2]
[368041541,1751003449644,-2161.0,0.00021547,2]
[368041542,1751003449653,-410.338,0.00021547,2]
[368041543,1751003449662,-1100.001432,0.0002156,4]
[368041544,1751003449671,-166.08289693,0.00021589,2]
[368041545,1751003449680,-7572.61937416,0.0002159,5]
[368041546,1751003449690,-151.0,0.000216,3]
[368041547,1751003449699,-1000.0,0.00021616,2]
[368041548,1751003449708,-1000.0,0.00021616,2]
[368041549,1751003449716,-658.58637463,0.00021616,2]
[368041550,1751003449726,-153.0,0.00021616,2]
[368041551,1751003449735,-153.0,0.00021616,2]
[368041552,1751003449744,-500.0,0.00021642,2]
[368041553,1751003449753,-500.0,0.00021642,2]
[368041554,1751003449763,-650.20106999,0.00021642,2]
[368041555,1751003449772,-500.0,0.00021642,2]
[368041556,1751003449781,-500.0,0.00021642,2]
[368041557,1751003449790,-500.0,0.00021642,2]
[368041558,1751003449799,-500.0,0.00021642,2]
[368041559,1751003449809,-500.0,0.00021642,2]
[368041560,1751003449818,-500.0,0.00021642,2]
[368041561,1751003449828,-308.97086399,0.00021642,2]
[368041562,1751003449837,-643.06,0.00021643,2]
[368041563,1751003449846,-460.0,0.00021643,2]
[368041564,1751003449855,-754.87,0.00021643,2]
[368041565,1751003449865,-5454.23665273,0.00021643,2]
[368041566,1751003449875,-853.31,0.00021643,2]
[368041567,1751003449884,-191.26254035,0.00021643,2]
[368041568,1751003449894,-460.0,0.00021643,2]
[368041569,1751003449904,-460.0,0.00021643,2]
[368041570,1751003449913,-519.19,0.00021643,2]
[368041571,1751003449922,-803.5,0.00021643,2]
[368041572,1751003449931,-460.0,0.00021643,2]
[368041573,1751003449940,-484.1,0.00021643,2]
[368041574,1751003449949,-460.0,0.00021643,2]
[368041575,1751003449958,-460.0,0.00021643,2]
[368041576,1751003449967,-155.82,0.00021643,2]
[368041577,1751003449976,-460.0,0.00021643,2]
[368041578,1751003449987,-460.0,0.00021643,2]
[368041579,1751003449996,-575.49,0.00021643,2]
[368041580,1751003450006,-501.59,0.00021643,2]
[368041581,1751003450015,-4177.53,0.00021643,2]
[368041582,1751003450025,-1823.15,0.00021643,2]
[368041583,1751003450035,-460.0,0.00021643,2]
[368041584,1751003450044,-2208.11,0.00021643,2]
[368041585,1751003450053,-460.0,0.00021643,2]
[368041586,1751003450063,-460.0,0.00021643,2]
[368041587,1751003450072,-156.99534255,0.00021643,2]
[368041588,1751003450081,-565.24,0.00021643,2]
[368041589,1751003450090,-880.74,0.00021643,2]
[368041590,1751003450100,-611.48,0.00021643,2]
[368041591,1751003450109,-1105.33,0.00021643,2]
[368041592,1751003450119,-1337.72,0.00021643,2]
[368041593,1751003450128,-460.0,0.00021643,2]
[368041594,1751003450137,-460.0,0.00021643,2]
[368041595,1751003450146,-460.0,0.00021643,2]
[368041596,1751003450155,-460.0,0.00021643,2]
[368041597,1751003450164,-884.36,0.00021643,2]
[368041598,1751003450174,-695.37,0.00021643,2]
[368041599,1751003450183,-2061.18,0.00021643,2]
[368041600,1751003450192,-741.29,0.00021643,2]
[368041601,1751003450201,-527.72,0.00021643,2]
[368041602,1751003450210,-2497.03,0.00021643,2]
[368041603,1751003450219,-460.0,0.00021643,2]
[368041604,1751003450229,-5747.25,0.00021643,2]
[368041605,1751003450238,-460.0,0.00021643,2]
[368041606,1751003450247,-460.0,0.00021643,2]
[368041607,1751003450257,-226.2393405,0.00021643,2]
[368041608,1751003450266,-460.0,0.00021643,2]
[368041609,1751003450276,-460.0,0.00021643,2]
[368041610,1751003450286,-1610.13,0.00021643,2]
[368041611,1751003450295,-853.05,0.00021643,2]
[368041612,1751003450304,-2661.97,0.00021643,2]
[368041613,1751003450314,-2452.25,0.00021643,2]
[368041614,1751003450324,-759.76,0.00021643,2]
[368041615,1751003450333,-731.76,0.00021643,2]
[368041616,1751003450342,-460.0,0.00021643,2]
[368041617,1751003450352,-989.19,0.00021643,2]
[368041618,1751003450363,-460.0,0.00021643,2]
[368041619,1751003450372,-2131.7,0.00021643,2]
[368041620,1751003450382,-754.27,0.00021643,2]
[368041621,1751003450391,-1612.45,0.00021643,2]
[368041622,1751003450403,-593.45,0.00021643,2]
[368041623,1751003450412,-2403.88,0.00021643,2]
[368041624,1751003450422,-460.0,0.00021643,2]
[368041625,1751003450432,-1594.99,0.00021643,2]
[368041626,1751003450443,-811.41,0.00021643,2]
[368041627,1751003450452,-1146.9,0.00021643,2]
[368041628,1751003450461,-1579.94,0.00021643,2]
[368041629,1751003450471,-460.0,0.00021643,2]
[368041630,1751003450481,-153.0,0.00021644,2]
[368041631,1751003450491,-153.0,0.00021644,2]
[368041632,1751003450500,-153.0,0.00021644,2]
[368041633,1751003450510,-153.0,0.00021644,2]
[368041634,1751003450519,-153.0,0.00021644,2]
[368041635,1751003450531,-153.0,0.00021671,2]
[368041636,1751003450542,-153.0,0.00021671,2]
[368041637,1751003450553,-5000.0,0.00021682,2]
[368041638,1751003450564,-753.0,0.00021689,2]
[368041639,1751003450574,-151.0,0.000217,3]
[368041640,1751003450584,-151.0,0.000217,4]
[368041641,1751003450593,-7572.61937416,0.00021762,5]
[368041642,1751003450604,-2681.4967068,0.0002178,2]
[368041643,1751003450615,-166.08289693,0.00021781,2]
[368041644,1751003450625,-2108.73060915,0.00021806,2]
[368041645,1751003450635,-753.0,0.0002181,2]
[368041646,1751003450644,-753.0,0.00021835,2]
[368041647,1751003450654,-156.3374524,0.00021836,2]
[368041648,1751003450664,-153.0,0.00021836,2]
[368041649,1751003450673,-689.93307705,0.00021882,2]
[368041650,1751003450683,-5078.68,0.000219,2]
[368041651,1751003450692,-10400.39089948,0.000219,2]
[368041652,1751003450702,-203.79692233,0.00021917,2]
[368041653,1751003450711,-460.0,0.00021917,2]
[368041654,1751003450721,-547.03226586,0.00021917,2]
[368041655,1751003450731,-460.0,0.00021917,2]
[368041656,1751003450740,-460.0,0.00021917,2]
[368041657,1751003450750,-460.0,0.00021917,2]
[368041658,1751003450760,-460.0,0.00021917,2]
[368041659,1751003450770,-460.0,0.00021917,2]
[368041660,1751003450780,-460.0,0.00021917,2]
[368041661,1751003450789,-460.0,0.00021917,2]
[368041662,1751003450799,-534.67,0.00021917,2]
[368041663,1751003450809,-643.06,0.00021917,2]
[368041664,1751003450818,-460.0,0.00021917,2]
[368041665,1751003450828,-754.87,0.00021917,2]
[368041666,1751003450838,-853.31,0.00021917,2]
[368041667,1751003450847,-460.0,0.00021917,2]
[368041668,1751003450856,-460.0,0.00021917,2]
[368041669,1751003450866,-519.19,0.00021917,2]
[368041670,1751003450876,-803.5,0.00021917,2]
[368041671,1751003450886,-460.0,0.00021917,2]
[368041672,1751003450895,-484.1,0.00021917,2]
[368041673,1751003450905,-460.0,0.00021917,2]
[368041674,1751003450915,-460.0,0.00021917,2]
[368041675,1751003450924,-460.0,0.00021917,2]
[368041676,1751003450934,-460.0,0.00021917,2]
[368041677,1751003450945,-575.49,0.00021917,2]
[368041678,1751003450954,-501.59,0.00021917,2]
[368041679,1751003450963,-4177.53,0.00021917,2]
[368041680,1751003450973,-1823.15,0.00021917,2]
[368041681,1751003450983,-460.0,0.00021917,2]
[368041682,1751003450992,-2208.11,0.00021917,2]
[368041683,1751003451002,-460.0,0.00021917,2]
[368041684,1751003451011,-460.0,0.00021917,2]
[368041685,1751003451021,-565.24,0.00021917,2]
[368041686,1751003451030,-880.74,0.00021917,2]
[368041687,1751003451040,-611.48,0.00021917,2]
[368041688,1751003451049,-1105.33,0.00021917,2]
[368041689,1751003451059,-1337.72,0.00021917,2]
[368041690,1751003451069,-460.0,0.00021917,2]
[368041691,1751003451079,-460.0,0.00021917,2]
[368041692,1751003451088,-559.60800554,0.00021917,2]
[368041693,1751003451098,-460.0,0.00021917,2]
[368041694,1751003451107,-884.36,0.00021917,2]
[368041695,1751003451116,-695.37,0.00021917,2]
[368041696,1751003451126,-2061.18,0.00021917,2]
[368041697,1751003451135,-741.29,0.00021917,2]
[368041698,1751003451145,-527.72,0.00021917,2]
[368041699,1751003451154,-2497.03,0.00021917,2]
[368041700,1751003451164,-460.0,0.00021917,2]
[368041701,1751003451173,-5747.25,0.00021917,2]
[368041702,1751003451184,-460.0,0.00021917,2]
[368041703,1751003451193,-460.0,0.00021917,2]
[368041704,1751003451203,-460.0,0.00021917,2]
[368041705,1751003451212,-460.0,0.00021917,2]
[368041706,1751003451222,-1610.13,0.00021917,2]
[368041707,1751003451231,-853.05,0.00021917,2]
[368041708,1751003451241,-2661.97,0.00021917,2]
[368041709,1751003451250,-2452.25,0.00021917,2]
[368041710,1751003451260,-759.76,0.00021917,2]
[368041711,1751003451269,-731.76,0.00021917,2]
[368041712,1751003451278,-460.0,0.00021917,2]
[368041713,1751003451288,-989.19,0.00021917,2]
[368041714,1751003451297,-460.0,0.00021917,2]
[368041715,1751003451306,-2131.7,0.00021917,2]
[368041716,1751003451315,-500.0,0.00021917,2]
[368041717,1751003451325,-754.27,0.00021917,2]
[368041718,1751003451335,-1612.45,0.00021917,2]
[368041719,1751003451344,-593.45,0.00021917,2]
[368041720,1751003451353,-2403.88,0.00021917,2]
[368041721,1751003451363,-460.0,0.00021917,2]
[368041722,1751003451373,-1594.99,0.00021917,2]
[368041723,1751003451382,-811.41,0.00021917,2]
[368041724,1751003451392,-1579.94,0.00021917,2]
[368041725,1751003451404,-1146.9,0.00021917,2]
[368041726,1751003451414,-460.0,0.00021917,2]
[368041727,1751003451424,-166.0,0.00021918,2]
[368041728,1751003451433,-150.0,0.00021918,2]
[368041729,1751003451442,-7572.61937416,0.00021934,6]
[368041730,1751003451451,-500.0,0.00021973,2]
[368041731,1751003451461,-500.0,0.00021973,2]
[368041732,1751003451470,-166.08289693,0.00021973,2]
[368041733,1751003451479,-500.0,0.00021973,2]
[368041734,1751003451489,-500.0,0.00021973,2]
[368041735,1751003451499,-610.78167965,0.00021973,2]
[368041736,1751003451508,-500.56052383,0.00021973,2]
[368041737,1751003451517,-500.47190355,0.00021973,2]
[368041738,1751003451527,-500.0,0.00021973,2]
[368041739,1751003451536,-500.0,0.00021973,2]
[368041740,1751003451546,-500.0,0.00021973,2]
[368041741,1751003451555,-180.55111141,0.00021973,2]
[368041742,1751003451564,-198.78382991,0.00021973,2]
[368041743,1751003451574,-500.0,0.00021973,2]
[368041744,1751003451583,-500.0,0.00021973,2]
[368041745,1751003451593,-500.0,0.00021973,2]
[368041746,1751003451603,-500.0,0.00021973,2]
[368041747,1751003451612,-500.0,0.00021973,2]
[368041748,1751003451622,-500.0,0.00021973,2]
[368041749,1751003451631,-500.0,0.00021973,2]
[368041750,1751003451641,-500.0,0.00021973,2]
[368041751,1751003451651,-500.0,0.00021973,2]
[368041752,1751003451660,-500.0,0.00021973,2]
[368041753,1751003451669,-500.0,0.00021973,2]
[368041754,1751003451679,-500.0,0.00021973,2]
[368041755,1751003451688,-500.0,0.00021973,2]
[368041756,1751003451698,-500.0,0.00021973,2]
[368041757,1751003451709,-500.0,0.00021973,2]
[368041758,1751003451721,-500.0,0.00021973,2]
[368041759,1751003451730,-500.0,0.00021973,2]
[368041760,1751003451740,-500.0,0.00021973,2]
[368041761,1751003451751,-600.0,0.00021973,2]
[368041762,1751003451761,-500.0,0.00021973,2]
[368041763,1751003451771,-500.0,0.00021973,2]
[368041764,1751003451781,-500.0,0.00021973,2]
[368041765,1751003451790,-500.0,0.00021973,2]
[368041766,1751003451800,-500.0,0.00021973,2]
[368041767,1751003451811,-500.0,0.00021973,2]
[368041768,1751003451821,-500.0,0.00021973,2]
[368041769,1751003451831,-500.0,0.00021973,2]
[368041770,1751003451840,-500.0,0.00021973,2]
[368041771,1751003451850,-544.82622425,0.00021973,2]
[368041772,1751003451860,-586.43269723,0.00021973,2]
[368041773,1751003451871,-500.0,0.00021973,2]
[368041774,1751003451880,-500.0,0.00021973,2]
[368041775,1751003451890,-500.0,0.00021973,2]
[368041776,1751003451901,-500.0,0.00021973,2]
[368041777,1751003451911,-500.0,0.00021973,2]
[368041778,1751003451921,-500.0,0.00021973,2]
[368041779,1751003451931,-500.0,0.00021973,2]
[368041780,1751003452052,-500.0,0.00021973,2]
[368041781,1751003452063,-500.0,0.00021973,2]
[368041782,1751003452072,-500.0,0.00021973,2]
[368041783,1751003452082,-500.0,0.00021973,2]
[368041784,1751003452091,-500.0,0.00021973,2]
[368041785,1751003452100,-500.0,0.00021973,2]
[368041786,1751003452109,-500.0,0.00021973,2]
[368041787,1751003452118,-500.0,0.00021973,2]
[368041788,1751003452127,-500.0,0.00021973,2]
[368041789,1751003452137,-500.0,0.00021973,2]
[368041790,1751003452146,-587.58906329,0.00021973,2]
[368041791,1751003452154,-165.163626,0.0002198,5]
[368041792,1751003452164,-200.0,0.00021999,2]
[368041793,1751003452173,-200.0,0.00021999,2]
[368041794,1751003452182,-200.0,0.00021999,2]
[368041795,1751003452191,-160.20507518,0.00021999,2]
[368041796,1751003452200,-23979.22243833,0.00022,2]
[368041797,1751003452209,-47426.73166746,0.00022,2]
[368041798,1751003452218,-215887.95334771,0.00022,2]
[368041799,1751003452351,-460.0,0.0002,2]
[368041800,1751003452361,-81544.34130067,0.00022,2]
[368041801,1751003452478,-460.0,0.00019178,2]
[368041802,1751003452488,-460.0,0.00019452,2]
[368041803,1751003452497,-460.0,0.00019726,2]
[368041804,1751003452506,-460.0,0.0002,2]
[368041805,1751003452515,-460.0,0.00020273,2]
[368041806,1751003452524,-460.0,0.00020273,2]
[368041807,1751003452533,-460.0,0.00020547,2]
[368041808,1751003452543,-460.0,0.00020547,2]
[368041809,1751003452552,-460.0,0.00020821,2]
[368041810,1751003452561,-460.0,0.00020821,2]
[368041811,1751003452570,-460.0,0.00021095,2]
[368041812,1751003452579,-460.0,0.00021095,2]
[368041813,1751003452589,-460.0,0.00021369,2]
[368041814,1751003452599,-460.0,0.00021643,2]
[368041815,1751003452607,-460.0,0.00021917,2]
[368041816,1751003452616,-74728.82383989,0.00022,2]
[368041817,1751003452703,-460.0,0.00021369,2]
[368041818,1751003452712,-93341.36225735,0.00022,2]
[368041819,1751003452727,-769.42311904,0.00022,2]
[368041820,1751003452962,-460.0,0.00019178,2]
[368041821,1751003452972,-460.0,0.00019178,2]
[368041822,1751003452981,-460.0,0.00019178,2]
[368041823,1751003452990,-243.9999968,0.00019452,2]
[368041827,1751004352103,-517.44980784,0.00019078,2]
[368041828,1751004352127,-160.0,0.00019175,2]
[368041829,1751004352148,-300.0,0.00019177,2]
[368041830,1751004352170,-300.0,0.00019177,2]
[368041831,1751004352192,-1200.0,0.00019177,2]
[368041832,1751004352214,-62.44084781,0.00019177,2]
[368041834,1751004425098,-587.0,0.00019177,2]
[368041835,1751004425120,-300.0,0.00019177,2]
[368041836,1751004425143,-460.0,0.00019178,2]
[368041837,1751004425165,-594.63641926,0.00019178,2]
[368041838,1751004425186,-460.0,0.00019178,2]
[368041839,1751004425209,-500.0,0.00019178,2]
[368041840,1751004425230,-500.0,0.00019178,2]
[368041841,1751004425250,-500.0,0.00019178,2]
[368041842,1751004425271,-500.0,0.00019178,2]
[368041843,1751004425291,-460.0,0.00019178,2]
[368041844,1751004425312,-500.0,0.00019178,2]
[368041845,1751004425332,-500.0,0.00019178,2]
[368041846,1751004425352,-500.0,0.00019178,2]
[368041847,1751004425372,-500.0,0.00019178,2]
[368041848,1751004425392,-500.0,0.00019178,2]
[368041849,1751004425412,-503.5184965,0.00019178,2]
[368041850,1751004425431,-504.75745484,0.00019178,2]
[368041851,1751004425453,-460.0,0.00019178,2]
[368041852,1751004425474,-500.0,0.00019178,2]
[368041853,1751004425494,-437.13151554,0.00019178,2]
[368041854,1751004425514,-460.0,0.00019178,2]
[368041855,1751004425536,-460.0,0.00019178,2]
[368041856,1751004425557,-460.0,0.00019178,2]
[368041857,1751004425577,-460.0,0.00019178,2]
[368041858,1751004425596,-460.0,0.00019178,2]
[368041859,1751004425616,-188.68,0.00019178,2]
[368041860,1751004425636,-250.80839271,0.00019178,2]
[368041861,1751004425656,-396.85594251,0.00019178,2]
[368041862,1751004425676,-460.0,0.00019178,2]
[368041863,1751004425697,-461.89767889,0.00019178,2]
[368041864,1751004425880,-460.0,0.00019178,2]
[368041865,1751004425901,-460.0,0.00019178,2]
[368041866,1751004425922,-460.0,0.00019178,2]
[368041867,1751004425942,-460.0,0.00019178,2]
[368041868,1751004425963,-500.0,0.00019178,2]
[368041869,1751004425984,-522.79887585,0.00019178,2]
[368041870,1751004426006,-460.0,0.00019178,2]
[368041871,1751004426028,-460.0,0.00019178,2]
[368041872,1751004426049,-460.0,0.00019178,2]
[368041873,1751004426070,-492.85,0.00019178,2]
[368041874,1751004426091,-460.0,0.00019178,2]
[368041875,1751004426111,-460.0,0.00019178,2]
[368041876,1751004426134,-460.0,0.00019178,2]
[368041877,1751004426157,-500.0,0.00019178,2]
[368041878,1751004426179,-248.98,0.00019178,2]
[368041879,1751004426199,-484.44,0.00019178,2]
[368041880,1751004426221,-460.0,0.00019178,2]
[368041881,1751004426243,-460.0,0.00019178,2]
[368041882,1751004426264,-514.68,0.00019178,2]
[368041883,1751004426284,-264.6,0.00019178,2]
[368041884,1751004426306,-460.0,0.00019178,2]
[368041885,1751004426328,-460.0,0.00019178,2]
[368041886,1751004426348,-460.0,0.00019178,2]
[368041887,1751004426369,-460.0,0.00019178,2]
[368041888,1751004426391,-460.0,0.00019178,2]
[368041889,1751004426411,-460.0,0.00019178,2]
[368041890,1751004426431,-500.0,0.00019178,2]
[368041891,1751004426452,-460.0,0.00019178,2]
[368041892,1751004426472,-460.0,0.00019178,2]
[368041893,1751004426494,-460.0,0.00019178,2]
[368041894,1751004426515,-460.0,0.00019178,2]
[368041895,1751004426536,-500.0,0.00019178,2]
[368041896,1751004426558,-460.0,0.00019178,2]
[368041897,1751004426579,-500.0,0.00019178,2]
[368041898,1751004426601,-460.0,0.00019178,2]
[368041899,1751004426623,-509.25,0.00019178,2]
[368041900,1751004426643,-463.66,0.00019178,2]
[368041901,1751004426668,-500.0,0.00019178,2]
[368041902,1751004426690,-460.0,0.00019178,2]
[368041903,1751004426711,-460.0,0.00019178,2]
[368041904,1751004426732,-460.0,0.00019178,2]
[368041905,1751004426754,-460.0,0.00019178,2]
[368041906,1751004426775,-460.0,0.00019178,2]
[368041907,1751004426797,-1536.13,0.00019178,2]
[368041908,1751004426818,-460.0,0.00019178,2]
[368041909,1751004426839,-460.0,0.00019178,2]
[368041910,1751004426860,-460.0,0.00019178,2]
[368041911,1751004426882,-1870.21,0.00019178,2]
[368041912,1751004426903,-460.0,0.00019178,2]
[368041913,1751004426923,-434.00746349,0.00019178,2]
[368041914,1751004426943,-460.0,0.00019178,2]
[368041915,1751004426964,-1142.3,0.00019178,2]
[368041916,1751004426986,-460.0,0.00019178,2]
[368041917,1751004427007,-460.0,0.00019178,2]
[368041918,1751004427029,-1776.14,0.00019178,2]
[368041919,1751004427051,-647.1,0.00019178,2]
[368041920,1751004427073,-460.0,0.00019178,2]
[368041921,1751004427094,-405.22657715,0.00019178,2]
[368041922,1751004427116,-942.63,0.00019178,2]
[368041923,1751004427140,-460.0,0.00019178,2]
[368041924,1751004427161,-460.0,0.00019178,2]
[368041925,1751004427183,-460.0,0.00019178,2]
[368041926,1751004427205,-1274.69,0.00019178,2]
[368041927,1751004427229,-460.0,0.00019178,2]
[368041928,1751004427253,-5089.98,0.00019178,2]
[368041929,1751004427274,-460.0,0.00019178,2]
[368041930,1751004427294,-460.0,0.00019178,2]
[368041931,1751004427316,-795.63,0.00019178,2]
[368041932,1751004427337,-460.0,0.00019178,2]
[368041933,1751004427357,-500.0,0.00019178,2]
[368041934,1751004427378,-460.0,0.00019178,2]
[368041935,1751004427399,-664.07,0.00019178,2]
[368041936,1751004427420,-460.0,0.00019178,2]
[368041937,1751004427443,-460.0,0.00019178,2]
[368041938,1751004427464,-433.72246233,0.00019178,2]
[368041939,1751004427484,-500.0,0.00019178,2]
[368041940,1751004427504,-460.0,0.00019178,2]
[368041941,1751004427526,-523.44,0.00019178,2]
[368041942,1751004427547,-460.0,0.00019178,2]
[368041943,1751004427568,-2243.63,0.00019178,2]
[368041944,1751004427589,-601.48,0.00019178,2]
[368041945,1751004427610,-500.0,0.00019178,2]
[368041946,1751004427632,-460.0,0.00019178,2]
[368041947,1751004427654,-460.0,0.00019178,2]
[368041948,1751004427673,-501.04,0.00019178,2]
[368041949,1751004427693,-460.0,0.00019178,2]
[368041950,1751004427713,-159.8,0.00019178,2]
[368041951,1751004427734,-460.0,0.00019178,2]
[368041952,1751004427755,-760.18,0.00019178,2]
[368041953,1751004427776,-783.11,0.00019178,2]
[368041954,1751004427800,-2292.26,0.00019178,2]
[368041955,1751004427821,-460.0,0.00019178,2]
[368041956,1751004427842,-460.0,0.00019178,2]
[368041957,1751004427863,-460.0,0.00019178,2]
[368041958,1751004427884,-519.89353784,0.00019178,2]
[368041959,1751004427905,-356.14368092,0.00019178,2]
[368041960,1751004427927,-675.33,0.00019178,2]
[368041961,1751004427948,-460.0,0.00019178,2]
[368041962,1751004427969,-460.0,0.00019178,2]
[368041963,1751004427989,-460.98738816,0.00019178,2]
[368041964,1751004428009,-460.0,0.00019178,2]
[368041965,1751004428031,-1941.37,0.00019178,2]
[368041966,1751004428054,-500.0,0.00019178,2]
[368041967,1751004428078,-500.0,0.00019178,2]
[368041968,1751004428102,-500.0,0.00019178,2]
[368041969,1751004428126,-500.0,0.00019178,2]
[368041970,1751004428154,-460.0,0.00019178,2]
[368041971,1751004428175,-460.0,0.00019178,2]
[368041972,1751004428198,-1756.14,0.00019178,2]
[368041973,1751004428219,-460.0,0.00019178,2]
[368041974,1751004428242,-1276.52,0.00019178,2]
[368041975,1751004428262,-460.0,0.00019178,2]
[368041976,1751004428282,-500.0,0.00019178,2]
[368041977,1751004428304,-463.75,0.00019178,2]
[368041978,1751004428325,-460.0,0.00019178,2]
[368041979,1751004428347,-460.0,0.00019178,2]
[368041980,1751004428368,-469.81,0.00019178,2]
[368041981,1751004428388,-500.0,0.00019178,2]
[368041982,1751004428409,-460.0,0.00019178,2]
[368041983,1751004428430,-460.0,0.00019178,2]
[368041984,1751004428451,-460.0,0.00019178,2]
[368041985,1751004428472,-460.0,0.00019178,2]